[Event "Late Titled Tuesday Blitz February 8 2022"]
[White "Hamley, Ryan"]
[Black "Kim, Sergey"]
[WhiteFideId "30959497"]
[BlackFideId "13700570"]
[WhiteElo "2468"]
[BlackElo "2610"]
[Result "0-1"]
[Round "06"]
[TimeControl "180+1"]
[Date "2022.02.09"]
[WhiteClock "0:00:07"]
[BlackClock "0:00:20"]

1. e4 {[%clk 0:03:00]}  e5 {[%clk 0:02:59]} 2. Nf3 {[%clk 0:03:00]}  Nc6 {[%clk 0:03:00]} 3. Bc4 {[%clk 0:03:00]}  Bc5 {[%clk 0:02:59]} 4. c3 {[%clk 0:03:00]}  Nf6 {[%clk 0:02:59]} 5. d4 {[%clk 0:03:00]}  exd4 {[%clk 0:02:59]} 6. e5 {[%clk 0:03:01]}  d5 {[%clk 0:02:59]} 7. Bb5 {[%clk 0:03:02]}  Ne4 {[%clk 0:02:59]} 8. cxd4 {[%clk 0:03:02]}  Bb6 {[%clk 0:02:58]} 9. Nc3 {[%clk 0:03:01]}  O-O {[%clk 0:02:57]} 10. O-O {[%clk 0:03:00]}  Bg4 {[%clk 0:02:56]} 11. Be3 {[%clk 0:03:00]}  Ne7 {[%clk 0:02:52]} 12. Bd3 {[%clk 0:02:58]}  Nxc3 {[%clk 0:02:34]} 13. bxc3 {[%clk 0:02:58]}  Nf5 {[%clk 0:02:34]} 14. Bf4 {[%clk 0:02:57]}  Nh4 {[%clk 0:02:16]} 15. Be2 {[%clk 0:02:51]}  Ng6 {[%clk 0:02:15]} 16. Bg3 {[%clk 0:02:50]}  h6 {[%clk 0:02:09]} 17. h3 {[%clk 0:02:50]}  Bf5 {[%clk 0:02:05]} 18. a4 {[%clk 0:02:48]}  a5 {[%clk 0:02:03]} 19. Qb3 {[%clk 0:02:47]}  Re8 {[%clk 0:01:57]} 20. Rfd1 {[%clk 0:02:37]}  Re6 {[%clk 0:01:50]} 21. c4 {[%clk 0:02:37]}  Be4 {[%clk 0:01:46]} 22. c5 {[%clk 0:02:24]}  Ba7 {[%clk 0:01:45]} 23. Qxb7 {[%clk 0:02:19]}  Bb6 {[%clk 0:01:29]} 24. cxb6 {[%clk 0:01:08]}  Rxb6 {[%clk 0:01:28]} 25. Qxb6 {[%clk 0:01:08]}  cxb6 {[%clk 0:01:28]} 26. Nd2 {[%clk 0:01:09]}  Bf5 {[%clk 0:01:23]} 27. Rac1 {[%clk 0:01:08]}  Rc8 {[%clk 0:01:18]} 28. Bb5 {[%clk 0:01:08]}  Nf8 {[%clk 0:01:15]} 29. Nb3 {[%clk 0:01:02]}  Ne6 {[%clk 0:01:13]} 30. Rxc8 {[%clk 0:01:01]}  Qxc8 {[%clk 0:01:12]} 31. Rc1 {[%clk 0:01:02]}  Qd8 {[%clk 0:01:11]} 32. Rc6 {[%clk 0:00:58]}  Kh7 {[%clk 0:01:04]} 33. f3 {[%clk 0:00:56]}  Qg5 {[%clk 0:00:57]} 34. Bf2 {[%clk 0:00:54]}  Nf4 {[%clk 0:00:55]} 35. g4 {[%clk 0:00:48]}  Nxh3+ {[%clk 0:00:53]} 36. Kf1 {[%clk 0:00:49]}  Nxf2 {[%clk 0:00:48]} 37. Kxf2 {[%clk 0:00:46]}  Be6 {[%clk 0:00:47]} 38. Bd3+ {[%clk 0:00:45]}  g6 {[%clk 0:00:46]} 39. Rxb6 {[%clk 0:00:45]}  Qf4 {[%clk 0:00:42]} 40. Ke2 {[%clk 0:00:46]}  h5 {[%clk 0:00:41]} 41. gxh5 {[%clk 0:00:46]}  Qh2+ {[%clk 0:00:40]} 42. Ke3 {[%clk 0:00:40]}  Qxh5 {[%clk 0:00:40]} 43. Nc5 {[%clk 0:00:39]}  Bh3 {[%clk 0:00:35]} 44. Rb7 {[%clk 0:00:34]}  Kg8 {[%clk 0:00:35]} 45. Rb8+ {[%clk 0:00:31]}  Kg7 {[%clk 0:00:35]} 46. Rb7 {[%clk 0:00:31]}  Qg5+ {[%clk 0:00:34]} 47. Ke2 {[%clk 0:00:31]}  Qg2+ {[%clk 0:00:32]} 48. Ke3 {[%clk 0:00:31]}  Qg1+ {[%clk 0:00:32]} 49. Kd2 {[%clk 0:00:26]}  Qxd4 {[%clk 0:00:29]} 50. Rc7 {[%clk 0:00:13]}  Qxe5 {[%clk 0:00:27]} 51. Rb7 {[%clk 0:00:11]}  Qd4 {[%clk 0:00:25]} 52. Rc7 {[%clk 0:00:10]}  Bf5 {[%clk 0:00:21]} 53. Ke2 {[%clk 0:00:07]}  Qe5+ {[%clk 0:00:20]} 0-1


[Site "https://www.chess.com"]

[Event "Late Titled Tuesday Blitz February 8 2022"]
[White "Hess, Robert"]
[Black "Ozates, Tuna"]
[WhiteFideId "2022036"]
[BlackFideId "6354521"]
[WhiteElo "2557"]
[BlackElo "1872"]
[Result "1-0"]
[Round "06"]
[TimeControl "180+1"]
[Date "2022.02.09"]
[WhiteClock "0:00:49"]
[BlackClock "0:01:19"]

1. b3 {[%clk 0:03:00]}  c5 {[%clk 0:02:56]} 2. Bb2 {[%clk 0:03:01]}  Nc6 {[%clk 0:02:54]} 3. e3 {[%clk 0:03:01]}  e5 {[%clk 0:02:53]} 4. Ne2 {[%clk 0:03:01]}  d5 {[%clk 0:02:52]} 5. d3 {[%clk 0:03:02]}  f5 {[%clk 0:02:51]} 6. Nd2 {[%clk 0:03:02]}  Nf6 {[%clk 0:02:52]} 7. g3 {[%clk 0:03:01]}  Bd6 {[%clk 0:02:52]} 8. Bg2 {[%clk 0:03:01]}  O-O {[%clk 0:02:52]} 9. O-O {[%clk 0:03:00]}  e4 {[%clk 0:02:48]} 10. dxe4 {[%clk 0:02:54]}  dxe4 {[%clk 0:02:37]} 11. Nc4 {[%clk 0:02:54]}  Bc7 {[%clk 0:02:35]} 12. Nf4 {[%clk 0:02:54]}  b5 {[%clk 0:02:32]} 13. Bxf6 {[%clk 0:02:49]}  Qxd1 {[%clk 0:02:12]} 14. Rfxd1 {[%clk 0:02:49]}  Bxf4 {[%clk 0:02:13]} 15. gxf4 {[%clk 0:02:40]}  bxc4 {[%clk 0:02:12]} 16. Bc3 {[%clk 0:02:10]}  Nb4 {[%clk 0:02:09]} 17. Rd6 {[%clk 0:01:51]}  Nxc2 {[%clk 0:01:48]} 18. Rc1 {[%clk 0:01:51]}  cxb3 {[%clk 0:01:48]} 19. axb3 {[%clk 0:01:50]}  Na3 {[%clk 0:01:49]} 20. Bf1 {[%clk 0:01:17]}  a6 {[%clk 0:01:33]} 21. Ra1 {[%clk 0:00:58]}  Nc2 {[%clk 0:01:31]} 22. Bc4+ {[%clk 0:00:55]}  Kh8 {[%clk 0:01:30]} 23. Ra5 {[%clk 0:00:53]}  Bb7 {[%clk 0:01:19]} 24. Rd7 {[%clk 0:00:49]} 1-0


[Site "https://www.chess.com"]

[Event "Late Titled Tuesday Blitz February 8 2022"]
[White "Holt, Conrad"]
[Black "Niemann, Hans Moke"]
[WhiteFideId "2034387"]
[BlackFideId "2093596"]
[WhiteElo "2586"]
[BlackElo "2636"]
[Result "0-1"]
[Round "06"]
[TimeControl "180+1"]
[Date "2022.02.08"]
[WhiteClock "0:00:01"]
[BlackClock "0:00:06"]

1. d4 {[%clk 0:03:00]}  Nf6 {[%clk 0:02:59]} 2. c4 {[%clk 0:03:01]}  e6 {[%clk 0:02:59]} 3. Nc3 {[%clk 0:03:01]}  Bb4 {[%clk 0:02:59]} 4. Qc2 {[%clk 0:03:02]}  d5 {[%clk 0:02:58]} 5. cxd5 {[%clk 0:03:01]}  exd5 {[%clk 0:02:58]} 6. Bg5 {[%clk 0:03:01]}  h6 {[%clk 0:02:58]} 7. Bxf6 {[%clk 0:03:00]}  Qxf6 {[%clk 0:02:58]} 8. a3 {[%clk 0:03:01]}  Bxc3+ {[%clk 0:02:57]} 9. Qxc3 {[%clk 0:03:02]}  c6 {[%clk 0:02:57]} 10. e3 {[%clk 0:03:02]}  Bf5 {[%clk 0:02:56]} 11. Ne2 {[%clk 0:03:00]}  Nd7 {[%clk 0:02:56]} 12. Ng3 {[%clk 0:03:00]}  Bg6 {[%clk 0:02:52]} 13. Be2 {[%clk 0:02:59]}  O-O {[%clk 0:02:48]} 14. O-O {[%clk 0:02:55]}  Qd6 {[%clk 0:02:47]} 15. b4 {[%clk 0:02:49]}  a6 {[%clk 0:02:47]} 16. a4 {[%clk 0:02:41]}  Rac8 {[%clk 0:02:41]} 17. Bg4 {[%clk 0:02:36]}  f5 {[%clk 0:02:40]} 18. Bh3 {[%clk 0:02:14]}  Bh7 {[%clk 0:02:40]} 19. Ne2 {[%clk 0:02:11]}  Nf6 {[%clk 0:02:32]} 20. f3 {[%clk 0:02:06]}  Rce8 {[%clk 0:02:31]} 21. Rfe1 {[%clk 0:02:04]}  Re7 {[%clk 0:02:31]} 22. Ng3 {[%clk 0:01:54]}  g6 {[%clk 0:02:20]} 23. Qc5 {[%clk 0:01:44]}  Qxc5 {[%clk 0:02:04]} 24. bxc5 {[%clk 0:01:33]}  Rfe8 {[%clk 0:02:03]} 25. Kf2 {[%clk 0:01:33]}  h5 {[%clk 0:02:03]} 26. Rab1 {[%clk 0:01:26]}  h4 {[%clk 0:01:56]} 27. Nf1 {[%clk 0:01:13]}  g5 {[%clk 0:01:55]} 28. g3 {[%clk 0:01:13]}  g4 {[%clk 0:01:41]} 29. Bg2 {[%clk 0:01:12]}  f4 {[%clk 0:01:41]} 30. Ra1 {[%clk 0:01:09]}  fxg3+ {[%clk 0:01:41]} 31. hxg3 {[%clk 0:01:09]}  h3 {[%clk 0:01:41]} 32. Bh1 {[%clk 0:01:09]}  gxf3 {[%clk 0:01:42]} 33. Bxf3 {[%clk 0:01:06]}  Be4 {[%clk 0:01:39]} 34. Bxe4 {[%clk 0:00:46]}  Nxe4+ {[%clk 0:01:37]} 35. Kg1 {[%clk 0:00:46]}  Rf7 {[%clk 0:01:33]} 36. Ra2 {[%clk 0:00:44]}  Ref8 {[%clk 0:01:32]} 37. Rh2 {[%clk 0:00:42]}  Ng5 {[%clk 0:01:28]} 38. Nd2 {[%clk 0:00:40]}  Kg7 {[%clk 0:01:28]} 39. Ree2 {[%clk 0:00:36]}  Kg6 {[%clk 0:01:26]} 40. g4 {[%clk 0:00:18]}  Nf3+ {[%clk 0:00:59]} 41. Nxf3 {[%clk 0:00:16]}  Rxf3 {[%clk 0:01:00]} 42. Rhf2 {[%clk 0:00:16]}  Kg5 {[%clk 0:00:57]} 43. Rxf3 {[%clk 0:00:15]}  Rxf3 {[%clk 0:00:58]} 44. e4 {[%clk 0:00:16]}  dxe4 {[%clk 0:00:49]} 45. Rxe4 {[%clk 0:00:17]}  Rf4 {[%clk 0:00:37]} 46. Re7 {[%clk 0:00:16]}  Rxd4 {[%clk 0:00:20]} 47. Rxb7 {[%clk 0:00:15]}  Kh4 {[%clk 0:00:19]} 48. Kf2 {[%clk 0:00:12]}  Rxa4 {[%clk 0:00:15]} 49. Kf3 {[%clk 0:00:07]}  Ra3+ {[%clk 0:00:08]} 50. Kf4 {[%clk 0:00:06]}  Ra4+ {[%clk 0:00:09]} 51. Kf3 {[%clk 0:00:06]}  Rc4 {[%clk 0:00:10]} 52. Rh7+ {[%clk 0:00:05]}  Kg5 {[%clk 0:00:10]} 53. Rg7+ {[%clk 0:00:05]}  Kf6 {[%clk 0:00:10]} 54. Ra7 {[%clk 0:00:05]}  Rc3+ {[%clk 0:00:09]} 55. Kf2 {[%clk 0:00:04]}  Kg5 {[%clk 0:00:09]} 56. Rxa6 {[%clk 0:00:04]}  Rxc5 {[%clk 0:00:07]} 57. Ra8 {[%clk 0:00:02]}  Kxg4 {[%clk 0:00:06]} 58. Rg8+ {[%clk 0:00:03]}  Rg5 {[%clk 0:00:06]} 59. Rh8 {[%clk 0:00:03]}  c5 {[%clk 0:00:07]} 60. Kg1 {[%clk 0:00:02]}  Kg3 {[%clk 0:00:07]} 61. Rd8 {[%clk 0:00:01]}  Rf5 {[%clk 0:00:06]} 62. Rd3+ {[%clk 0:00:01]}  Rf3 {[%clk 0:00:06]} 63. Rd1 {[%clk 0:00:01]}  c4 {[%clk 0:00:06]} 0-1


[Site "https://www.chess.com"]

[Event "Late Titled Tuesday Blitz February 8 2022"]
[White "Indjic, Aleksandar"]
[Black "Khater, Sherif"]
[WhiteFideId "911925"]
[BlackFideId "2034280"]
[WhiteElo "2616"]
[BlackElo "2551"]
[Result "1-0"]
[Round "06"]
[TimeControl "180+1"]
[Date "2022.02.08"]
[WhiteClock "0:00:19"]
[BlackClock "0:00:21"]

1. d4 {[%clk 0:03:00]}  Nf6 {[%clk 0:02:59]} 2. Nf3 {[%clk 0:03:01]}  e6 {[%clk 0:02:58]} 3. Bg5 {[%clk 0:03:01]}  c5 {[%clk 0:02:58]} 4. d5 {[%clk 0:03:00]}  exd5 {[%clk 0:02:55]} 5. Nc3 {[%clk 0:03:00]}  d4 {[%clk 0:02:54]} 6. Nd5 {[%clk 0:02:58]}  Be7 {[%clk 0:02:50]} 7. Bxf6 {[%clk 0:02:53]}  Bxf6 {[%clk 0:02:50]} 8. e4 {[%clk 0:02:49]}  d6 {[%clk 0:02:45]} 9. a4 {[%clk 0:02:21]}  O-O {[%clk 0:02:45]} 10. Bd3 {[%clk 0:02:17]}  Nc6 {[%clk 0:02:45]} 11. h3 {[%clk 0:02:15]}  h6 {[%clk 0:02:45]} 12. O-O {[%clk 0:02:13]}  Be6 {[%clk 0:02:43]} 13. Bc4 {[%clk 0:02:13]}  Ne5 {[%clk 0:02:43]} 14. Ba2 {[%clk 0:02:12]}  Re8 {[%clk 0:02:38]} 15. Nd2 {[%clk 0:02:12]}  d3 {[%clk 0:02:17]} 16. c3 {[%clk 0:02:11]}  Nd7 {[%clk 0:01:53]} 17. a5 {[%clk 0:01:57]}  b6 {[%clk 0:01:44]} 18. Qb1 {[%clk 0:01:39]}  bxa5 {[%clk 0:01:39]} 19. Qxd3 {[%clk 0:01:38]}  Nb6 {[%clk 0:01:39]} 20. f4 {[%clk 0:01:36]}  Bxd5 {[%clk 0:01:37]} 21. Bxd5 {[%clk 0:01:34]}  Nxd5 {[%clk 0:01:37]} 22. Qxd5 {[%clk 0:01:34]}  Rb8 {[%clk 0:01:32]} 23. Nc4 {[%clk 0:01:34]}  Be7 {[%clk 0:01:22]} 24. Rfd1 {[%clk 0:01:16]}  Bf8 {[%clk 0:01:22]} 25. Rd2 {[%clk 0:01:03]}  Qh4 {[%clk 0:01:22]} 26. Rf2 {[%clk 0:01:01]}  Re6 {[%clk 0:01:05]} 27. Rxa5 {[%clk 0:00:58]}  Rbe8 {[%clk 0:01:05]} 28. Rxa7 {[%clk 0:00:38]}  Qf6 {[%clk 0:00:40]} 29. e5 {[%clk 0:00:37]}  Qf5 {[%clk 0:00:38]} 30. Ra1 {[%clk 0:00:22]}  dxe5 {[%clk 0:00:31]} 31. fxe5 {[%clk 0:00:23]}  Qh5 {[%clk 0:00:28]} 32. Raf1 {[%clk 0:00:23]}  R8e7 {[%clk 0:00:28]} 33. Rxf7 {[%clk 0:00:23]}  Qxf7 {[%clk 0:00:20]} 34. Rxf7 {[%clk 0:00:22]}  Kxf7 {[%clk 0:00:21]} 35. Nd6+ {[%clk 0:00:22]}  Kg6 {[%clk 0:00:20]} 36. Qe4+ {[%clk 0:00:19]}  Kg5 {[%clk 0:00:20]} 37. Qf5+ {[%clk 0:00:19]}  Kh4 {[%clk 0:00:21]} 38. Qg4# {[%clk 0:00:19]} 1-0


[Site "https://www.chess.com"]

[Event "Late Titled Tuesday Blitz February 8 2022"]
[White "Iskusnyh, Sergei"]
[Black "Papp, Petra"]
[WhiteFideId "4120027"]
[BlackFideId "739049"]
[WhiteElo "2492"]
[BlackElo "2259"]
[Result "1-0"]
[Round "06"]
[TimeControl "180+1"]
[Date "2022.02.09"]
[WhiteClock "0:00:33"]
[BlackClock "0:00:01"]

1. d4 {[%clk 0:03:00]}  d6 {[%clk 0:02:57]} 2. c4 {[%clk 0:03:01]}  f5 {[%clk 0:02:55]} 3. Nf3 {[%clk 0:03:00]}  Nf6 {[%clk 0:02:55]} 4. e3 {[%clk 0:03:00]}  g6 {[%clk 0:02:51]} 5. Be2 {[%clk 0:03:00]}  Bg7 {[%clk 0:02:50]} 6. O-O {[%clk 0:03:00]}  O-O {[%clk 0:02:50]} 7. Nc3 {[%clk 0:03:01]}  c6 {[%clk 0:02:41]} 8. b4 {[%clk 0:03:00]}  a5 {[%clk 0:02:39]} 9. b5 {[%clk 0:02:59]}  Qe8 {[%clk 0:02:31]} 10. Rb1 {[%clk 0:02:54]}  h6 {[%clk 0:02:17]} 11. Ba3 {[%clk 0:02:47]}  g5 {[%clk 0:02:08]} 12. Qb3 {[%clk 0:02:14]}  Be6 {[%clk 0:02:05]} 13. bxc6 {[%clk 0:02:08]}  bxc6 {[%clk 0:02:00]} 14. Qb7 {[%clk 0:02:05]}  Na6 {[%clk 0:01:45]} 15. d5 {[%clk 0:02:00]}  Bd7 {[%clk 0:01:36]} 16. Nd4 {[%clk 0:01:48]}  c5 {[%clk 0:01:14]} 17. Ne6 {[%clk 0:01:37]}  Bxe6 {[%clk 0:01:12]} 18. dxe6 {[%clk 0:01:37]}  Nb4 {[%clk 0:01:12]} 19. Qb5 {[%clk 0:01:19]}  Qc8 {[%clk 0:00:47]} 20. Bf3 {[%clk 0:00:59]}  Rb8 {[%clk 0:00:38]} 21. Qxa5 {[%clk 0:00:59]}  Qxe6 {[%clk 0:00:37]} 22. Bxb4 {[%clk 0:00:56]}  cxb4 {[%clk 0:00:33]} 23. Nd5 {[%clk 0:00:56]}  Ne4 {[%clk 0:00:24]} 24. Bxe4 {[%clk 0:00:46]}  Qxe4 {[%clk 0:00:19]} 25. Rxb4 {[%clk 0:00:43]}  Ra8 {[%clk 0:00:19]} 26. Qc7 {[%clk 0:00:41]}  Rxa2 {[%clk 0:00:17]} 27. Nxe7+ {[%clk 0:00:38]}  Kh7 {[%clk 0:00:17]} 28. Nd5 {[%clk 0:00:36]}  Qd3 {[%clk 0:00:12]} 29. Rb7 {[%clk 0:00:34]}  Rg8 {[%clk 0:00:01]} 30. Nf6+ {[%clk 0:00:34]}  Kg6 {[%clk 0:00:01]} 31. Qf7# {[%clk 0:00:33]} 1-0


[Site "https://www.chess.com"]

[Event "Late Titled Tuesday Blitz February 8 2022"]
[White "Jaferian, Koosha"]
[Black "Melaugh, Shane"]
[WhiteFideId "12507440"]
[BlackFideId "2509580"]
[WhiteElo "2027"]
[BlackElo "2000"]
[Result "0-1"]
[Round "06"]
[TimeControl "180+1"]
[Date "2022.02.09"]
[WhiteClock "0:00:02"]
[BlackClock "0:00:46"]

1. Nf3 {[%clk 0:03:00]}  d6 {[%clk 0:02:58]} 2. d4 {[%clk 0:03:00]}  f5 {[%clk 0:02:57]} 3. b3 {[%clk 0:03:00]}  Nf6 {[%clk 0:02:56]} 4. Bb2 {[%clk 0:03:00]}  e6 {[%clk 0:02:57]} 5. g3 {[%clk 0:03:00]}  d5 {[%clk 0:02:53]} 6. Bg2 {[%clk 0:02:58]}  Bd6 {[%clk 0:02:54]} 7. O-O {[%clk 0:02:59]}  c6 {[%clk 0:02:54]} 8. c4 {[%clk 0:02:59]}  O-O {[%clk 0:02:55]} 9. Ba3 {[%clk 0:02:58]}  Bxa3 {[%clk 0:02:49]} 10. Nxa3 {[%clk 0:02:59]}  Nbd7 {[%clk 0:02:49]} 11. Nc2 {[%clk 0:02:59]}  Ne4 {[%clk 0:02:48]} 12. e3 {[%clk 0:02:59]}  Ndf6 {[%clk 0:02:39]} 13. Nce1 {[%clk 0:02:59]}  Bd7 {[%clk 0:02:40]} 14. Nd3 {[%clk 0:02:59]}  Be8 {[%clk 0:02:40]} 15. Nfe5 {[%clk 0:02:59]}  Bh5 {[%clk 0:02:40]} 16. Qc2 {[%clk 0:02:59]}  Nd6 {[%clk 0:02:36]} 17. Rfc1 {[%clk 0:02:49]}  Nf7 {[%clk 0:02:22]} 18. Nf4 {[%clk 0:02:43]}  Qe8 {[%clk 0:01:59]} 19. Ned3 {[%clk 0:02:25]}  g5 {[%clk 0:01:43]} 20. Nxh5 {[%clk 0:02:24]}  Nxh5 {[%clk 0:01:44]} 21. f4 {[%clk 0:02:17]}  Nf6 {[%clk 0:01:37]} 22. Kh1 {[%clk 0:01:54]}  Ne4 {[%clk 0:01:34]} 23. Bxe4 {[%clk 0:01:52]}  fxe4 {[%clk 0:01:34]} 24. Nf2 {[%clk 0:01:47]}  gxf4 {[%clk 0:01:35]} 25. gxf4 {[%clk 0:01:48]}  Nh6 {[%clk 0:01:35]} 26. Rg1+ {[%clk 0:01:47]}  Kh8 {[%clk 0:01:36]} 27. Rg3 {[%clk 0:01:44]}  Qh5 {[%clk 0:01:34]} 28. Rh3 {[%clk 0:01:31]}  Qg6 {[%clk 0:01:30]} 29. Rg1 {[%clk 0:01:31]}  Qf6 {[%clk 0:01:30]} 30. Rg5 {[%clk 0:01:22]}  Rg8 {[%clk 0:01:24]} 31. Rhg3 {[%clk 0:01:16]}  Nf5 {[%clk 0:01:24]} 32. Rxg8+ {[%clk 0:01:03]}  Rxg8 {[%clk 0:01:24]} 33. Rxg8+ {[%clk 0:01:03]}  Kxg8 {[%clk 0:01:25]} 34. Qe2 {[%clk 0:00:55]}  Kf8 {[%clk 0:01:18]} 35. Nh3 {[%clk 0:00:32]}  Qh4 {[%clk 0:01:15]} 36. Kg2 {[%clk 0:00:32]}  h6 {[%clk 0:01:03]} 37. Nf2 {[%clk 0:00:20]}  Qf6 {[%clk 0:00:52]} 38. Ng4 {[%clk 0:00:20]}  Qg7 {[%clk 0:00:51]} 39. Kf2 {[%clk 0:00:16]}  Nh4 {[%clk 0:00:48]} 40. Kf1 {[%clk 0:00:05]}  Nf3 {[%clk 0:00:43]} 41. Qg2 {[%clk 0:00:05]}  Qxg4 {[%clk 0:00:44]} 42. Qxg4 {[%clk 0:00:02]}  Nxh2+ {[%clk 0:00:45]} 43. Ke2 {[%clk 0:00:02]}  Nxg4 {[%clk 0:00:46]} 0-1


[Site "https://www.chess.com"]

[Event "Late Titled Tuesday Blitz February 8 2022"]
[White "Kobalia, Mikhail"]
[Black "Romanchuk, Viktor"]
[WhiteFideId "4119150"]
[BlackFideId "14109271"]
[WhiteElo "2667"]
[BlackElo "2242"]
[Result "1-0"]
[Round "06"]
[TimeControl "180+1"]
[Date "2022.02.08"]
[WhiteClock "0:01:52"]
[BlackClock "0:00:31"]

1. e4 {[%clk 0:02:55]}  e6 {[%clk 0:02:59]} 2. d3 {[%clk 0:02:55]}  d5 {[%clk 0:02:59]} 3. Nd2 {[%clk 0:02:55]}  Nf6 {[%clk 0:02:59]} 4. Ngf3 {[%clk 0:02:55]}  c5 {[%clk 0:02:59]} 5. g3 {[%clk 0:02:55]}  g6 {[%clk 0:02:59]} 6. Bg2 {[%clk 0:02:56]}  Bg7 {[%clk 0:03:00]} 7. O-O {[%clk 0:02:56]}  O-O {[%clk 0:03:00]} 8. Re1 {[%clk 0:02:57]}  Nc6 {[%clk 0:03:00]} 9. c3 {[%clk 0:02:57]}  a5 {[%clk 0:03:00]} 10. a4 {[%clk 0:02:56]}  b6 {[%clk 0:02:59]} 11. e5 {[%clk 0:02:55]}  Nd7 {[%clk 0:02:46]} 12. d4 {[%clk 0:02:54]}  cxd4 {[%clk 0:02:45]} 13. cxd4 {[%clk 0:02:53]}  Ba6 {[%clk 0:02:46]} 14. Nf1 {[%clk 0:02:52]}  Nb4 {[%clk 0:02:45]} 15. Bg5 {[%clk 0:02:51]}  f6 {[%clk 0:02:38]} 16. exf6 {[%clk 0:02:51]}  Bxf6 {[%clk 0:02:37]} 17. Bxf6 {[%clk 0:02:48]}  Qxf6 {[%clk 0:02:37]} 18. Ne3 {[%clk 0:02:40]}  Rae8 {[%clk 0:02:14]} 19. Ng4 {[%clk 0:02:37]}  Qg7 {[%clk 0:02:14]} 20. Re3 {[%clk 0:02:33]}  g5 {[%clk 0:01:37]} 21. Nfe5 {[%clk 0:02:23]}  Nxe5 {[%clk 0:01:29]} 22. Nxe5 {[%clk 0:02:22]}  Rc8 {[%clk 0:01:26]} 23. Bh3 {[%clk 0:02:15]}  Rfe8 {[%clk 0:01:04]} 24. Rc1 {[%clk 0:02:09]}  Qf6 {[%clk 0:00:44]} 25. Rf3 {[%clk 0:02:06]}  Qh6 {[%clk 0:00:39]} 26. Bg4 {[%clk 0:02:05]}  Rf8 {[%clk 0:00:33]} 27. Rxf8+ {[%clk 0:01:53]}  Qxf8 {[%clk 0:00:31]} 28. Bxe6+ {[%clk 0:01:52]} 1-0


[Site "https://www.chess.com"]

[Event "Late Titled Tuesday Blitz February 8 2022"]
[White "Kosakowski, Jakub"]
[Black "Shevchenko, Kirill"]
[WhiteFideId "1185080"]
[BlackFideId "14129574"]
[WhiteElo "2476"]
[BlackElo "2624"]
[Result "0-1"]
[Round "06"]
[TimeControl "180+1"]
[Date "2022.02.08"]
[WhiteClock "0:01:34"]
[BlackClock "0:02:27"]

1. e4 {[%clk 0:03:00]}  c5 {[%clk 0:02:55]} 2. Nf3 {[%clk 0:03:00]}  d6 {[%clk 0:02:55]} 3. d4 {[%clk 0:02:57]}  cxd4 {[%clk 0:02:56]} 4. Qxd4 {[%clk 0:02:58]}  Bd7 {[%clk 0:02:54]} 5. Be2 {[%clk 0:02:57]}  Nc6 {[%clk 0:02:54]} 6. Qe3 {[%clk 0:02:57]}  g6 {[%clk 0:02:50]} 7. O-O {[%clk 0:02:56]}  Bg7 {[%clk 0:02:50]} 8. h3 {[%clk 0:02:55]}  Nf6 {[%clk 0:02:50]} 9. Rd1 {[%clk 0:02:55]}  O-O {[%clk 0:02:50]} 10. c4 {[%clk 0:02:55]}  Qb6 {[%clk 0:02:51]} 11. Qxb6 {[%clk 0:02:35]}  axb6 {[%clk 0:02:50]} 12. Nc3 {[%clk 0:02:36]}  Rfc8 {[%clk 0:02:40]} 13. Be3 {[%clk 0:02:34]}  Na5 {[%clk 0:02:32]} 14. b3 {[%clk 0:02:04]}  b5 {[%clk 0:02:32]} 15. c5 {[%clk 0:02:04]}  b4 {[%clk 0:02:29]} 16. Na4 {[%clk 0:01:34]}  Bxa4 {[%clk 0:02:27]} 17. bxa4 {[%clk 0:01:34]}  Nxe4 {[%clk 0:02:27]} 0-1


[Site "https://www.chess.com"]

[Event "Late Titled Tuesday Blitz February 8 2022"]
[White "Kraus, Tomas"]
[Black "yondaymebr"]
[WhiteFideId "331708"]
[WhiteElo "2389"]
[BlackElo "2534"]
[Result "1-0"]
[Round "06"]
[TimeControl "180+1"]
[Date "2022.02.09"]
[WhiteClock "0:01:00"]
[BlackClock "0:00:03"]

1. e4 {[%clk 0:02:48]}  c5 {[%clk 0:03:00]} 2. Nf3 {[%clk 0:02:47]}  e6 {[%clk 0:03:00]} 3. d4 {[%clk 0:02:47]}  cxd4 {[%clk 0:03:01]} 4. Nxd4 {[%clk 0:02:48]}  Nf6 {[%clk 0:03:02]} 5. Nc3 {[%clk 0:02:48]}  Nc6 {[%clk 0:03:03]} 6. Ndb5 {[%clk 0:02:48]}  Bb4 {[%clk 0:02:56]} 7. a3 {[%clk 0:02:47]}  Bxc3+ {[%clk 0:02:56]} 8. Nxc3 {[%clk 0:02:48]}  d5 {[%clk 0:02:56]} 9. exd5 {[%clk 0:02:49]}  exd5 {[%clk 0:02:57]} 10. Bd3 {[%clk 0:02:50]}  O-O {[%clk 0:02:55]} 11. O-O {[%clk 0:02:50]}  d4 {[%clk 0:02:56]} 12. Ne2 {[%clk 0:02:50]}  Bg4 {[%clk 0:02:56]} 13. f3 {[%clk 0:02:50]}  Bh5 {[%clk 0:02:56]} 14. Bg5 {[%clk 0:02:50]}  Qd6 {[%clk 0:02:54]} 15. Qd2 {[%clk 0:02:50]}  Rfe8 {[%clk 0:02:53]} 16. Rfe1 {[%clk 0:02:51]}  Bg6 {[%clk 0:02:53]} 17. Ng3 {[%clk 0:02:45]}  h6 {[%clk 0:02:12]} 18. Bf4 {[%clk 0:02:33]}  Qc5 {[%clk 0:02:08]} 19. Rxe8+ {[%clk 0:02:23]}  Rxe8 {[%clk 0:02:07]} 20. Re1 {[%clk 0:02:24]}  Rxe1+ {[%clk 0:02:06]} 21. Qxe1 {[%clk 0:02:25]}  Bxd3 {[%clk 0:02:03]} 22. cxd3 {[%clk 0:02:24]}  Nd5 {[%clk 0:02:03]} 23. Qe8+ {[%clk 0:02:12]}  Kh7 {[%clk 0:01:54]} 24. Qxf7 {[%clk 0:02:11]}  Nxf4 {[%clk 0:00:58]} 25. Qxf4 {[%clk 0:02:12]}  Qc2 {[%clk 0:00:58]} 26. Qe4+ {[%clk 0:02:05]}  Kg8 {[%clk 0:00:55]} 27. Nf5 {[%clk 0:01:56]}  Qc1+ {[%clk 0:00:54]} 28. Kf2 {[%clk 0:01:56]}  Qxb2+ {[%clk 0:00:54]} 29. Kg3 {[%clk 0:01:54]}  Qc1 {[%clk 0:00:31]} 30. h4 {[%clk 0:01:23]}  Qc5 {[%clk 0:00:18]} 31. Qe6+ {[%clk 0:01:06]}  Kh7 {[%clk 0:00:18]} 32. f4 {[%clk 0:01:07]}  Qf8 {[%clk 0:00:14]} 33. h5 {[%clk 0:01:02]}  Kh8 {[%clk 0:00:07]} 34. Nh4 {[%clk 0:01:00]}  Qf6 {[%clk 0:00:03]} 35. Ng6+ {[%clk 0:01:00]}  Kh7 {[%clk 0:00:03]} 36. Qe8 {[%clk 0:01:00]} 1-0


[Site "https://www.chess.com"]